bitfinex-derivatives/quotes_SOLF0:USTF0_20240824
["timestamp","ask_amount","ask_price","bid_price","bid_amount"]
[1724519570658,0.0403202,161.31,161.3,3.0984]
[1724519570963,19.02,161.37,161.26,19.02]
[1724519571258,19.02,161.37,161.29,19.02]
[1724519571766,22.1171,161.37,161.32,3.0979]
[1724519571964,0.04346839,161.36,161.33,0.04258773]
[1724519573462,3.14086839,161.36,161.33,0.04258773]
[1724519573962,3.0975,161.35,161.33,0.04258773]
[1724519574158,22.1175,161.35,161.33,0.04258773]
[1724519579262,19.02,161.35,161.33,0.04258773]
[1724519582072,3.14066839,161.36,161.33,0.04258773]
[1724519584772,0.04346839,161.36,161.33,0.04258773]
[1724519586771,3.14086839,161.36,161.33,0.04258773]
[1724519590576,7.62,161.35,161.33,0.04258773]
[1724519592172,10.7175,161.35,161.33,0.04258773]
[1724519592377,7.62,161.34,161.33,0.04258773]
[1724519593269,10.7176,161.34,161.33,0.04258773]
[1724519594574,22.1276,161.34,161.33,0.04258773]
[1724519595481,19.03,161.34,161.28,3.0986]
[1724519596383,3.0982,161.31,161.28,3.0986]
[1724519596592,3.13856428,161.31,161.28,3.14360371]
[1724519596877,0.04036428,161.31,161.28,3.14360371]
[1724519598873,3.02712618,161.3,161.28,3.14360371]
[1724519599068,3.02712618,161.3,161.28,0.04500371]
[1724519599273,19.07036428,161.31,161.28,0.04500371]
[1724519599475,22.1286,161.29,161.28,0.04500371]
[1724519599681,25.20498751,161.29,161.28,0.04500371]
[1724519605074,6.17498751,161.29,161.28,0.04500371]
[1724519605286,3.0986,161.29,161.28,0.04500371]
[1724519607486,3.03662046,161.3,161.28,0.04500371]
[1724519607685,19.03,161.29,161.28,0.04500371]
[1724519608082,22.1286,161.29,161.28,0.04500371]
[1724519616489,10.7086,161.29,161.28,0.04500371]
[1724519619591,3.0991,161.26,161.17,3.6712]
[1724519619790,7.61,161.23,161.17,3.6712]
[1724519620710,7.61,161.22,161.17,3.6712]
[1724519621193,7.61,161.22,161.19,3.1004]
[1724519621194,7.65023462,161.22,161.19,3.1004]
[1724519621592,7.65023462,161.22,161.18,0.04190023]
[1724519621792,7.61,161.2,161.18,0.04190023]
[1724519625102,7.61,161.21,161.18,0.04190023]
[1724519626100,7.61,161.21,161.19,3.1005]
[1724519626902,0.04023462,161.22,161.18,0.04190023]
[1724519627294,7.65023462,161.22,161.2,3.1002]
[1724519628097,7.65023462,161.22,161.21,3.1001]
[1724519628606,7.65023462,161.22,161.19,3.1003]
[1724519628807,7.61,161.21,161.19,3.1003]
[1724519632709,0.04023462,161.22,161.2,3.1003]
[1724519633045,0.04023462,161.22,161.18,0.04190023]
[1724519634106,0.04023462,161.22,161.21,3.1001]
[1724519643516,4.35292046,161.3,161.21,7.61]
[1724519643716,4.35292046,161.3,161.23,7.61]
[1724519643717,11.96292046,161.3,161.23,7.61]
[1724519643914,6.13502046,161.3,161.23,7.61]
[1724519644217,7.61,161.29,161.23,7.61]
[1724519644645,0.04226932,161.28,161.24,0.04334186]
[1724519645018,0.04226932,161.28,161.26,3.0991]
[1724519645322,0.04226932,161.28,161.25,7.61]
[1724519645623,0.04226932,161.28,161.25,11.478]
[1724519646418,0.04226932,161.28,161.27,3.099]
[1724519651127,0.04226932,161.28,161.25,2.5587]
[1724519651523,7.65226932,161.28,161.24,0.04334186]
[1724519651929,7.61,161.26,161.24,0.04334186]
[1724519653436,7.61,161.26,161.24,3.14284186]
[1724519655732,7.61,161.26,161.24,0.04334186]
[1724519659436,7.61,161.26,161.24,3.14284186]
[1724519667849,7.65226932,161.28,161.24,3.14284186]
[1724519668141,7.65226932,161.28,161.25,3.0993]
[1724519671448,10.75106932,161.28,161.25,3.0993]
[1724519679159,10.75106932,161.28,161.24,3.14284186]
[1724519681359,10.7091,161.27,161.24,0.04334186]
[1724519690068,7.61,161.27,161.24,3.14284186]
[1724519690770,0.04226932,161.28,161.26,3.0991]
[1724519691064,0.04226932,161.28,161.24,7.65334186]
[1724519691267,0.04226932,161.28,161.26,3.099]
[1724519691470,0.04226932,161.28,161.24,7.65334186]
[1724519692276,0.04226932,161.28,161.26,3.099]
[1724519701384,0.04226932,161.28,161.27,3.099]
[1724519702275,0.04226932,161.28,161.27,10.709]
[1724519702776,9.2849,161.48,161.3,7.61]
[1724519702974,7.61,161.39,161.32,7.61]
[1724519703181,3.097,161.37,161.32,10.7078]
[1724519703572,3.097,161.37,161.33,0.04255375]
[1724519703573,0.04242936,161.36,161.33,0.04255375]
[1724519704077,3.13972936,161.36,161.33,0.04255375]
[1724519704487,0.04242936,161.36,161.33,0.04255375]
[1724519704684,3.13972936,161.36,161.33,0.04255375]
[1724519706783,0.04242936,161.36,161.33,3.14035375]
[1724519707298,0.04242936,161.36,161.33,0.04255375]
[1724519707691,0.04242936,161.36,161.33,7.65255375]
[1724519707883,0.04242936,161.36,161.35,3.0974]
[1724519708486,0.04242936,161.36,161.34,3.0976]
[1724519708894,0.04242936,161.36,161.33,0.04255375]
[1724519709388,7.65242936,161.36,161.33,0.04255375]
[1724519712284,7.61,161.35,161.33,0.04255375]
[1724519712589,7.61,161.35,161.26,1.2218]
[1724519712786,7.61,161.3,161.26,1.2218]
[1724519713196,7.61,161.3,161.22,32.39]
[1724519713490,0.04299687,161.28,161.24,0.04249093]
[1724519714389,0.04299687,161.28,161.26,3.0991]
[1724519715991,7.65299687,161.28,161.24,0.04249093]
[1724519716395,7.61,161.27,161.24,0.04249093]
[1724519717696,7.61,161.27,161.24,3.14199093]
[1724519721494,7.61,161.27,161.24,0.04249093]
[1724519722596,7.61,161.25,161.24,0.04249093]
[1724519724306,7.61,161.27,161.24,0.04249093]
[1724519725798,7.61,161.25,161.24,0.04249093]
[1724519726399,10.7093,161.25,161.24,0.04249093]
[1724519726606,7.61,161.25,161.24,0.04249093]
[1724519727709,0.04299687,161.28,161.24,0.04249093]
[1724519728007,7.65299687,161.28,161.24,0.04249093]
[1724519728507,7.65299687,161.28,161.25,3.0992]
[1724519729612,7.65299687,161.28,161.27,3.099]
[1724519729806,7.65299687,161.28,161.24,0.04249093]
[1724519730214,7.65299687,161.28,161.25,3.0993]
[1724519731607,0.04299687,161.28,161.24,0.04249093]
[1724519731817,0.04299687,161.28,161.24,7.65249093]
[1724519732312,0.04299687,161.28,161.27,3.099]
[1724519733615,7.61,161.33,161.3,3.0982]
[1724519734511,7.65129001,161.33,161.3,3.14519887]
[1724519735812,7.65129001,161.33,161.3,0.04699887]
[1724519736012,7.61,161.32,161.3,0.04699887]
[1724519737421,10.708,161.32,161.3,0.04699887]
[1724519741314,0.04129001,161.33,161.3,0.04699887]
[1724519741716,0.04129001,161.33,161.31,3.0982]
[1724519743216,0.04129001,161.33,161.3,0.04699887]
[1724519743217,0.04129001,161.33,161.32,3.098]
[1724519743618,7.61,161.39,161.31,7.61]
[1724519744029,3.0969,161.38,161.31,10.69591675]
[1724519744720,0.04388643,161.36,161.34,3.0974]
[1724519744914,0.04388643,161.36,161.33,0.04317603]
[1724519745132,0.04388643,161.36,161.34,3.0976]
[1724519746617,0.04388643,161.36,161.33,0.04317603]
[1724519746618,0.04388643,161.36,161.35,3.0974]
[1724519749226,0.04388643,161.36,161.34,3.0976]
[1724519750223,0.04388643,161.36,161.35,3.0974]
[1724519757121,0.04388643,161.36,161.35,10.7074]
[1724519757330,2.4847,161.44,161.38,3.0968]
[1724519757525,3.0962,161.42,161.38,3.0968]
[1724519758125,10.65644032,161.43,161.38,3.0968]
[1724519758331,0.03916585,161.42,161.39,0.04748271]
[1724519759328,3.0965,161.4,161.39,0.04748271]
[1724519759921,3.0963,161.41,161.39,0.04748271]
[1724519760331,0.03916585,161.42,161.39,0.04748271]
[1724519760733,3.13526585,161.42,161.39,0.04748271]
[1724519764031,0.03916585,161.42,161.39,0.04748271]
[1724519765245,0.03916585,161.42,161.4,7.61]
[1724519765427,3.1474118,161.55,161.41,7.61]
[1724519765628,7.61,161.49,161.41,7.61]
[1724519766031,3.7407,161.54,161.41,7.61]
[1724519766232,7.61,161.49,161.41,7.61]
[1724519766832,0.044673,161.47,161.43,0.04354532]
[1724519767334,0.044673,161.47,161.44,3.0955]
[1724519767635,0.044673,161.47,161.43,0.04354532]
[1724519768325,0.044673,161.47,161.43,3.13924532]
[1724519769534,0.044673,161.47,161.44,3.0956]
[1724519769838,0.044673,161.47,161.43,0.04354532]
[1724519770836,0.044673,161.47,161.43,3.13924532]
[1724519772841,0.044673,161.47,161.44,3.0956]
[1724519778643,3.139873,161.47,161.43,3.13934532]
[1724519779441,3.0953,161.46,161.43,0.04354532]
[1724519779833,3.0955,161.45,161.43,0.04354532]
[1724519780035,7.61,161.46,161.43,0.04354532]
[1724519780237,10.7057,161.44,161.43,0.04354532]
[1724519784146,7.61,161.46,161.43,0.04354532]
[1724519784545,3.0955,161.45,161.43,0.04354532]
[1724519785042,7.61,161.46,161.43,0.04354532]
[1724519785740,3.0957,161.44,161.43,0.04354532]
[1724519787948,4.44625875,161.47,161.43,0.04354532]
[1724519788145,3.17665875,161.47,161.43,0.04354532]
[1724519788346,0.044673,161.47,161.44,7.61]
[1724519788744,0.044673,161.47,161.45,3.0953]
[1724519790150,0.044673,161.47,161.44,10.7057]
[1724519791249,0.044673,161.47,161.45,3.0955]
[1724519792752,0.044673,161.47,161.46,7.61]
[1724519792957,0.044673,161.47,161.46,10.7053]
[1724519793857,0.044673,161.47,161.44,7.61]
[1724519794058,0.044673,161.47,161.45,7.61]
[1724519794247,0.044673,161.47,161.46,3.0953]
[1724519795055,7.61,161.55,161.48,3.0947]
[1724519795256,7.61,161.55,161.48,7.61]
[1724519795451,3.13628096,161.54,161.48,7.61]
[1724519795758,10.70666738,161.56,161.5,7.61]
[1724519796259,0.04620692,161.55,161.51,7.64956935]
[1724519797464,0.04620692,161.55,161.52,3.0941]
[1724519798654,48.26270819,161.62,161.52,3.0941]
[1724519798655,229.0,161.71,161.54,7.61]
[1724519798853,2.474,161.66,161.56,7.61]
[1724519799057,3.03178779,161.67,161.62,7.61]
[1724519799257,34.1267,161.77,161.63,7.61]
[1724519799465,7.61,161.71,161.63,7.61]
[1724519799654,0.03911797,161.69,161.63,7.61]
[1724519799856,0.03911797,161.69,161.65,0.04222306]
[1724519800264,0.03911797,161.69,161.67,7.61]
[1724519801565,0.03911797,161.69,161.68,7.61]
[1724519801755,0.03911797,161.69,161.68,10.7011]
[1724519802464,0.03911797,161.69,161.68,3.0911]
[1724519802864,0.03911797,161.69,161.67,3.0913]
[1724519803253,19.0,161.75,161.65,19.04222306]
[1724519803254,3.0901,161.74,161.65,19.04222306]
[1724519803460,1.2535,161.77,161.67,19.0]
[1724519803683,1.2535,161.77,161.69,19.0]
[1724519803856,3.0897,161.76,161.7,3.0905]
[1724519804061,1.2535,161.77,161.7,3.0905]
[1724519804560,0.04187624,161.75,161.72,0.04404155]
[1724519806569,3.08650939,161.81,161.74,19.0]
[1724519806979,19.0,161.81,161.73,1.2285]
[1724519807167,22.15789342,161.81,161.73,1.2285]
[1724519807466,19.0434225,161.79,161.75,0.04321902]
[1724519808177,3.07486184,161.78,161.75,0.04321902]
[1724519808769,22.0896,161.76,161.75,0.04321902]
[1724519811065,3.0896,161.76,161.75,0.04321902]
[1724519812080,0.0434225,161.79,161.75,0.04321902]
[1724519813180,19.0,161.78,161.75,0.04321902]
[1724519813879,3.0896,161.76,161.75,0.04321902]
[1724519814979,0.0434225,161.79,161.75,0.04321902]
[1724519815575,3.1326225,161.79,161.75,0.04321902]
[1724519816474,3.0892,161.78,161.75,0.04321902]
[1724519816674,0.0434225,161.79,161.75,0.04321902]
[1724519817177,0.0434225,161.79,161.76,3.0895]
[1724519817379,0.0434225,161.79,161.75,19.04321902]
[1724519817782,0.0434225,161.79,161.75,0.04321902]
[1724519819378,3.0896,161.76,161.75,0.04321902]
[1724519820283,19.0,161.77,161.64,5.5375]
[1724519820585,19.0,161.73,161.64,2.4457]
[1724519820986,3.0911,161.68,161.64,2.4457]
[1724519821183,22.04880874,161.73,161.64,2.4457]
[1724519821391,0.04356625,161.7,161.67,0.0390749]
[1724519821579,0.04084534,161.7,161.67,0.0471221]
[1724519821985,0.04084534,161.7,161.68,19.0]
[1724519822185,3.0897,161.76,161.7,3.0906]
[1724519822380,3.0897,161.76,161.7,19.0]
[1724519822578,3.0897,161.76,161.7,23.74]
[1724519822978,3.0897,161.76,161.71,3.0905]
[1724519823193,0.04102684,161.75,161.72,0.04417146]
[1724519824382,3.13082684,161.75,161.72,0.04417146]
[1724519825787,0.04102684,161.75,161.72,0.04417146]
[1724519826707,0.04102684,161.75,161.72,23.78417146]
[1724519827781,0.04102684,161.75,161.72,0.04417146]
[1724519828891,3.0901,161.73,161.72,0.04417146]
[1724519829386,3.0911,161.68,161.64,2.4457]
[1724519829689,23.74,161.74,161.64,2.4457]
[1724519829990,23.74,161.74,161.65,3.0916]
[1724519830387,0.04249494,161.71,161.68,0.04647442]
[1724519830586,3.0909,161.69,161.68,0.04647442]
[1724519833793,3.0909,161.69,161.6,1.2894]
[1724519833794,3.0917,161.65,161.6,1.2894]
[1724519834091,23.74,161.69,161.6,4.3819]
[1724519834291,23.74,161.69,161.58,66.52987805]
[1724519834793,0.04220581,161.65,161.62,0.04653568]
[1724519836193,3.13390581,161.65,161.62,0.04653568]
[1724519836793,3.0919,161.64,161.62,0.04653568]
[1724519837296,0.04220581,161.65,161.62,0.04653568]
[1724519838390,3.092,161.63,161.62,0.04653568]
[1724519839094,6.25681818,161.63,161.62,0.04653568]
[1724519840388,3.092,161.63,161.62,0.04653568]
[1724519841994,3.0919,161.64,161.62,0.04653568]
[1724519842192,0.04220581,161.65,161.62,0.04653568]
[1724519842694,3.13400581,161.65,161.62,0.04653568]
[1724519843594,3.092,161.63,161.62,0.04653568]
[1724519844792,0.04220581,161.65,161.62,0.04653568]
[1724519846188,3.092,161.63,161.62,0.04653568]
[1724519855796,6.1206192,161.63,161.62,0.04653568]
[1724519856396,7.3950192,161.63,161.62,0.04653568]
[1724519856999,3.0933,161.57,161.52,24.72]
[1724519857196,19.0,161.6,161.52,24.72]
[1724519857397,19.0,161.56,161.49,2.5131]
[1724519857800,3.0937,161.55,161.51,3.0943]
[1724519858002,3.13290512,161.55,161.51,3.13870336]
[1724519859308,3.0938,161.54,161.51,0.04440336]
[1724519859805,0.03920512,161.55,161.51,0.04440336]
[1724519860211,3.13280512,161.55,161.51,0.04440336]
[1724519860810,3.13280512,161.55,161.51,3.13870336]
[1724519861001,0.03920512,161.55,161.51,0.04440336]
[1724519861208,0.03920512,161.55,161.52,3.0941]
[1724519861510,0.03920512,161.55,161.51,0.04440336]
[1724519862514,0.03920512,161.55,161.53,19.0]
[1724519862709,3.0926,161.61,161.53,19.0]
[1724519862911,19.0,161.62,161.53,19.0]
[1724519863408,3.0927,161.6,161.56,3.0932]
[1724519863810,3.14004427,161.6,161.56,3.13477522]
[1724519864414,3.14004427,161.6,161.57,3.0932]
[1724519865408,3.0928,161.59,161.56,0.04157522]
[1724519865609,19.04734427,161.6,161.56,0.04157522]
[1724519866007,3.093,161.59,161.56,0.04157522]
[1724519866210,19.04734427,161.6,161.56,0.04157522]
[1724519866511,3.0932,161.57,161.56,0.04157522]
[1724519866710,19.04734427,161.6,161.56,0.04157522]
[1724519868111,19.0,161.58,161.56,0.04157522]
[1724519868616,22.0932,161.57,161.56,0.04157522]
[1724519869708,3.0932,161.57,161.56,0.04157522]
[1724519870904,3.0931,161.58,161.56,0.04157522]
[1724519871216,0.04734427,161.6,161.56,0.04157522]
[1724519872414,3.0929,161.59,161.56,0.04157522]
[1724519872916,3.093,161.59,161.56,0.04157522]
[1724519873113,0.04734427,161.6,161.56,0.04157522]
[1724519874509,3.14004427,161.6,161.56,3.13487522]
[1724519874812,0.04734427,161.6,161.56,0.04157522]
[1724519875309,0.04734427,161.6,161.57,3.0931]
[1724519876306,3.13994427,161.6,161.57,3.0931]
[1724519876510,3.13994427,161.6,161.56,0.04157522]
[1724519876511,0.04734427,161.6,161.56,0.04157522]
[1724519877112,3.0929,161.59,161.56,0.04157522]
[1724519877618,3.0929,161.59,161.56,3.13487522]
[1724519877819,3.14004427,161.6,161.56,3.13487522]
[1724519878018,22.0286192,161.63,161.56,0.04157522]
[1724519878222,2.5969,161.62,161.35,17.59429345]
[1724519878518,19.0,161.54,161.34,403.93506278]
[1724519878821,1.2959,161.61,161.5,19.0]
[1724519879013,20.2959,161.61,161.5,19.0]
[1724519879226,0.04442593,161.57,161.54,0.04353159]
[1724519880415,0.04442593,161.57,161.54,19.04353159]
[1724519881319,0.04442593,161.57,161.54,22.13723159]
[1724519881834,253.74,161.77,161.56,19.0]
[1724519882123,1.2204,161.7,161.63,19.0]
[1724519882818,0.03950304,161.68,161.65,0.03980377]
[1724519885622,3.0915,161.66,161.65,0.03980377]
[1724519886022,23.74,161.67,161.56,23.74]
[1724519886217,23.74,161.67,161.57,3.093]
[1724519886920,23.74,161.65,161.56,3.0933]
[1724519887120,0.04469898,161.64,161.6,0.045487]
[1724519887423,3.07602662,161.63,161.6,0.045487]
[1724519887623,3.0924,161.61,161.6,0.045487]
[1724519888115,0.04469898,161.64,161.6,0.045487]
[1724519889036,23.74,161.63,161.6,0.045487]
[1724519889229,26.81683644,161.63,161.6,0.045487]
[1724519890131,3.0924,161.61,161.6,0.045487]
[1724519890530,6.16903644,161.63,161.6,0.045487]
[1724519890923,3.07683644,161.63,161.6,0.045487]
[1724519891124,0.04469898,161.64,161.6,0.045487]
[1724519892125,3.0922,161.63,161.6,0.045487]
[1724519892523,0.04469898,161.64,161.6,0.045487]
[1724519892928,3.0924,161.61,161.6,0.045487]
[1724519893129,0.04469898,161.64,161.6,0.045487]
[1724519893734,3.0921,161.63,161.6,0.045487]
[1724519894034,0.04469898,161.64,161.6,0.045487]
[1724519894528,0.04469898,161.64,161.6,3.138087]
[1724519894724,0.04469898,161.64,161.6,0.045487]
[1724519895629,3.0921,161.63,161.6,0.045487]
[1724519897528,3.0924,161.61,161.6,0.045487]
[1724519901638,3.0932,161.57,161.54,1.2856]
[1724519902534,3.0932,161.57,161.54,1.32961359]
[1724519902742,0.03915107,161.57,161.54,1.32961359]
[1724519903339,0.03915107,161.57,161.56,3.0934]
[1724519903633,0.03915107,161.57,161.54,1.32961359]
[1724519904441,0.03915107,161.57,161.55,3.0936]
[1724519905635,0.03915107,161.57,161.54,4.42341359]
[1724519905837,0.03915107,161.57,161.54,1.32961359]
[1724519906342,0.03915107,161.57,161.54,4.42331359]
[1724519906841,3.13235107,161.57,161.54,0.04401359]
[1724519907440,0.03915107,161.57,161.54,0.04401359]
[1724519908742,0.03915107,161.57,161.55,3.0936]
[1724519914344,0.03915107,161.57,161.54,3.13771359]
[1724519915749,0.03915107,161.57,161.55,3.0936]
[1724519919252,0.03915107,161.57,161.54,0.04401359]
[1724519920147,0.03915107,161.57,161.54,3.13761359]
[1724519920354,0.03915107,161.57,161.54,0.04401359]
[1724519921352,0.03915107,161.57,161.55,3.0936]
[1724519921552,0.03915107,161.57,161.54,0.04401359]
[1724519924455,3.0935,161.56,161.54,0.04401359]
[1724519927457,0.03915107,161.57,161.54,0.04401359]
[1724519928355,1.2077,161.68,161.55,19.0]
[1724519928553,5.615,161.68,161.63,3.0919]
[1724519929359,0.04625226,161.67,161.64,0.04086256]
[1724519929659,0.04625226,161.67,161.64,3.13266256]
[1724519931362,0.04625226,161.67,161.64,0.04086256]
[1724519932165,0.04625226,161.67,161.66,19.0]
[1724519932353,0.04625226,161.67,161.66,22.0915]
[1724519934054,0.04625226,161.67,161.66,3.0915]
[1724519940060,0.04625226,161.67,161.64,0.04086256]
[1724519941186,22.0898,161.75,161.65,19.0]
[1724519941365,22.0898,161.75,161.67,19.0]
[1724519941663,19.0,161.77,161.67,19.0]
[1724519941863,19.0,161.8,161.69,19.0]
[1724519942071,0.04380294,161.76,161.73,0.04272919]
[1724519942264,0.04380294,161.76,161.74,3.0898]
[1724519942466,0.04380294,161.76,161.73,0.04272919]
[1724519942767,0.04380294,161.76,161.74,3.0899]
[1724519943769,0.04380294,161.76,161.75,3.0898]
[1724519944769,0.04380294,161.76,161.74,3.0899]
[1724519945469,0.04380294,161.76,161.75,3.0898]
[1724519949667,0.04380294,161.76,161.74,3.0899]
[1724519950365,0.04380294,161.76,161.73,0.04272919]
[1724519951565,3.0899,161.75,161.73,0.04272919]
[1724519951761,0.04380294,161.76,161.73,0.04272919]
[1724519952672,3.13350294,161.76,161.73,0.04272919]
[1724519953769,0.04380294,161.76,161.73,0.04272919]
[1724519953967,0.04380294,161.76,161.62,20.2647]
[1724519953968,19.0,161.74,161.62,20.2647]
[1724519954469,3.0903,161.72,161.62,20.2647]
[1724519954769,3.06894389,161.75,161.64,19.0]
[1724519954973,0.04391163,161.71,161.68,0.04358124]
[1724519955865,19.04391163,161.71,161.68,0.04358124]
[1724519956071,19.04391163,161.71,161.58,1.2443]
[1724519956072,19.0,161.67,161.58,1.2443]
[1724519956384,1.3157,161.7,161.51,1.2965]
[1724519956576,1.3157,161.7,161.52,3.12208578]
[1724519956577,4.41214173,161.7,161.52,3.12208578]
[1724519956788,19.0,161.6,161.52,1.0107834]
[1724519957072,3.1375172,161.58,161.54,0.04123505]
[1724519957465,0.0445172,161.58,161.54,0.04123505]
[1724519958570,0.0445172,161.58,161.55,19.0]
[1724519959675,0.0445172,161.58,161.56,3.0932]
[1724519960170,0.0445172,161.58,161.57,3.0932]
[1724519960575,3.0917,161.65,161.59,3.0928]
[1724519961176,3.0919,161.64,161.59,3.0928]
[1724519961375,3.0919,161.64,161.58,3.093]
[1724519961679,3.0923,161.62,161.59,0.03994905]
[1724519961975,0.03900625,161.63,161.59,0.03994905]
[1724519963176,3.0924,161.62,161.59,0.03994905]
[1724519965872,3.0925,161.61,161.59,0.03994905]
[1724519966274,3.0923,161.62,161.59,0.03994905]
[1724519967768,0.03900625,161.63,161.59,0.03994905]
[1724519967971,0.03900625,161.63,161.59,3.13254905]
[1724519969876,0.03900625,161.63,161.59,0.03994905]
[1724519970379,0.03900625,161.63,161.6,3.0926]
[1724519972276,0.03900625,161.63,161.59,0.03994905]
[1724519972478,0.03900625,161.63,161.59,23.77994905]
[1724519973394,0.03900625,161.63,161.61,3.0923]
[1724519973578,0.03900625,161.63,161.59,23.77994905]
[1724519973579,0.03900625,161.63,161.59,0.03994905]
[1724519973774,0.03900625,161.63,161.59,3.13264905]
[1724519975482,0.03900625,161.63,161.59,0.03994905]
[1724519975990,3.0923,161.62,161.59,0.03994905]
[1724519976188,0.03900625,161.63,161.59,0.03994905]
[1724519976686,3.13120625,161.63,161.59,0.03994905]
[1724519976882,0.03900625,161.63,161.59,0.03994905]
[1724519977087,3.0924,161.62,161.59,0.03994905]
[1724519977285,23.74,161.62,161.5,1.2666]
[1724519977485,25.0039,161.62,161.5,1.2666]
[1724519977788,3.0931,161.58,161.54,3.0937]
[1724519978385,3.0931,161.58,161.54,3.13341136]
[1724519978386,3.13442951,161.58,161.54,3.13341136]
[1724519978691,0.04132951,161.58,161.54,3.13341136]
[1724519979280,0.04132951,161.58,161.54,0.03971136]
[1724519979981,0.04132951,161.58,161.54,3.13331136]
[1724519980792,0.04132951,161.58,161.54,0.03971136]
[1724519982294,0.04132951,161.58,161.56,3.0933]
[1724519982592,0.04132951,161.58,161.54,19.04971136]
[1724519982994,0.04132951,161.58,161.57,3.0932]
[1724519987403,3.0919,161.64,161.59,3.0927]
[1724519987696,19.01,161.66,161.56,19.01]
[1724519988501,0.0470966,161.63,161.61,3.0923]
[1724519995112,0.0470966,161.63,161.59,0.03967563]
[1724519995705,19.01,161.62,161.59,0.03967563]
[1724519996304,3.0926,161.61,161.59,0.03967563]
[1724519996505,19.01,161.62,161.59,0.03967563]
[1724519997010,3.0926,161.6,161.59,0.03967563]
[1724519998611,19.01,161.6,161.55,3.0935]
[1724519999313,3.05336148,161.59,161.55,3.0935]
[1724519999627,3.09806283,161.59,161.55,3.13342681]
[1724520000415,6.19106283,161.59,161.55,3.13342681]
[1724520000911,19.01,161.58,161.55,0.03992681]
[1724520001213,19.01,161.56,161.48,24.74]
[1724520001604,22.1034,161.56,161.51,3.0943]
[1724520002114,0.04312076,161.55,161.52,0.03967952]
[1724520002310,3.13672076,161.55,161.52,0.03967952]
[1724520002609,19.01,161.54,161.32,6.1959]
[1724520002815,22.1047,161.49,161.39,21.30409102]
[1724520003014,19.01,161.51,161.41,19.01]
[1724520003241,22.1045,161.51,161.45,3.0953]
[1724520003411,22.1045,161.51,161.42,3.02461395]
[1724520003716,0.04697504,161.48,161.45,3.13539082]
[1724520004212,0.04697504,161.48,161.45,0.03999082]
[1724520005914,0.04697504,161.48,161.46,3.0952]
[1724520006308,0.04697504,161.48,161.45,0.03999082]
[1724520006907,19.05697504,161.48,161.45,0.03999082]
[1724520007111,19.01,161.46,161.4,1.01184836]
[1724520007307,0.04697504,161.48,161.36,19.01]
[1724520007308,19.01,161.48,161.36,19.01]
[1724520007513,19.01,161.48,161.41,3.0961]
[1724520007713,1.2485,161.47,161.36,19.01]
[1724520007912,1.2485,161.47,161.38,19.01]
[1724520008112,0.0405541,161.44,161.43,3.0958]
[1724520010719,20.2209,161.52,161.48,3.0948]
[1724520010914,1.2109,161.52,161.44,19.01]
[1724520011121,1.2634,161.53,161.46,19.01]
[1724520011515,3.09883375,161.55,161.48,19.01]
[1724520011714,0.0461222,161.51,161.5,3.0945]
[1724520011916,0.0420102,161.52,161.5,0.04018257]
[1724520012117,0.04106013,161.53,161.5,0.04018257]
[1724520012522,0.04106013,161.53,161.51,3.0942]
[1724520012721,0.04106013,161.53,161.5,0.04018257]
[1724520013024,19.05106013,161.53,161.5,0.04018257]
[1724520013518,3.0942,161.52,161.5,0.04018257]
[1724520013820,3.0942,161.52,161.43,19.01]
[1724520014017,1.2727,161.51,161.43,19.01]
[1724520014424,23.3771,161.51,161.42,65.93112109]
[1724520014722,0.04721013,161.48,161.45,0.04064853]
[1724520015125,19.05721013,161.48,161.45,0.04064853]
[1724520015826,22.15221013,161.48,161.45,0.04064853]
[1724520016120,19.01,161.46,161.36,19.01]
[1724520016424,23.77,161.47,161.36,23.77]
[1724520017119,0.04499815,161.43,161.4,3.13828753]
[1724520017324,0.04499815,161.43,161.4,0.04198753]
[1724520017718,0.04499815,161.43,161.4,3.13838753]
[1724520018922,0.04499815,161.43,161.4,0.04198753]
[1724520021329,23.77,161.42,161.4,0.04198753]
[1724520021723,23.77,161.42,161.35,3.0973]
[1724520021724,3.0965,161.4,161.35,3.0973]
[1724520022025,3.0965,161.4,161.31,23.77]